bitfinex/quotes_ETHUSD_20260302
["timestamp","ask_amount","ask_price","bid_price","bid_amount"]
[1772465673729,1.87908774,2032.1,2031.3,0.921]
[1772465673931,1.87908774,2032.1,2031.4,0.921]
[1772465674226,0.64881907,2032.1,2031.4,0.921]
[1772465674430,0.002,2031.9,2031.1,6.00638947]
[1772465674634,0.002,2031.9,2031.2,7.23718899]
[1772465675033,0.002,2031.9,2030.8,6.00638947]
[1772465675232,0.002,2031.9,2030.9,2.15198133]
[1772465675469,0.002,2031.9,2031.0,0.921]
[1772465675968,1.8810927,2032.1,2031.2,6.00638947]
[1772465676308,1.8810927,2032.1,2030.9,1.23098133]
[1772465676465,1.8810927,2032.1,2031.0,0.921]
[1772465676804,0.65081907,2032.1,2031.2,6.00638947]
[1772465677309,0.002,2032.4,2031.2,6.00638947]
[1772465677605,0.002,2033.3,2032.0,6.00638947]
[1772465677764,0.002,2034.7,2032.8,1.94965882]
[1772465677765,10.84813549,2034.2,2032.8,1.94965882]
[1772465678088,0.002,2034.2,2033.3,6.00638947]
[1772465678304,0.002,2034.2,2033.4,6.99392547]
[1772465678815,0.002,2034.2,2033.5,8.15779689]
[1772465678968,0.002,2034.7,2033.8,6.00638947]
[1772465679291,1.39254981,2034.9,2033.5,3.17906624]
[1772465679464,7.32270539,2034.9,2033.0,6.00638947]
[1772465679665,7.8798144,2034.8,2033.0,6.92838947]
[1772465680088,5.93215558,2036.0,2033.5,6.00638947]
[1772465680292,5.93015558,2035.6,2033.9,6.00638947]
[1772465680490,5.93015558,2035.5,2033.9,6.00638947]
[1772465680699,5.93015558,2035.5,2034.0,0.922]
[1772465680700,1.2282598,2035.4,2034.0,0.922]
[1772465680875,1.22822834,2035.5,2034.3,6.00638947]
[1772465681079,1.22795815,2035.9,2034.5,6.07192547]
[1772465681268,1.22795815,2035.9,2034.5,6.00638947]
[1772465681469,1.22795815,2035.9,2034.6,0.922]
[1772465681685,1.22795815,2035.9,2034.0,0.48734081]
[1772465681686,7.17515558,2035.8,2034.0,6.00638947]
[1772465682167,5.93015558,2035.6,2033.5,6.00638947]
[1772465682371,5.93015558,2035.6,2033.5,8.15779624]
[1772465682577,5.93015558,2035.6,2033.7,7.23567599]
[1772465682578,1.2282598,2035.4,2033.7,7.23567599]
[1772465682776,1.2282598,2035.4,2033.4,2.57526043]
[1772465682777,7.15841538,2035.4,2033.4,2.57526043]
[1772465682970,1.244,2035.3,2033.8,0.921]
[1772465683274,1.245,2035.3,2033.5,6.15587446]
[1772465683476,1.245,2035.3,2033.6,0.921]
[1772465683477,5.93015558,2035.2,2033.6,0.921]
[1772465684178,1.2282598,2035.4,2033.7,6.92738947]
[1772465684516,1.22801846,2035.8,2034.1,6.00638947]
[1772465684804,7.15817404,2035.8,2034.2,0.921]
[1772465685108,1.243,2035.7,2034.2,0.921]
[1772465685666,1.243,2035.7,2034.1,6.00638947]
[1772465686017,7.17315558,2035.7,2034.2,0.92]
[1772465686172,7.17315558,2035.7,2033.8,1.22922607]
[1772465686372,5.93015558,2035.4,2033.7,1.22925445]
[1772465686572,7.15847572,2035.3,2033.7,1.22925445]
[1772465686774,7.15847572,2035.3,2033.7,7.23564392]
[1772465687079,1.22832014,2035.3,2033.9,6.00638947]
[1772465687516,1.22832014,2035.3,2034.0,0.92]
[1772465687881,2.51399445,2035.9,2034.0,0.92]
[1772465687882,1.22801846,2035.9,2034.4,0.14948499]
[1772465688079,1.22801846,2035.9,2034.5,6.96027472]
[1772465688597,1.22801846,2035.9,2034.7,0.065536]
[1772465688796,0.002,2036.0,2034.8,8.18989669]
[1772465688998,0.002,2036.0,2034.9,0.921]
[1772465689302,0.002,2035.2,2034.7,1.22864377]
[1772465689477,0.002,2035.2,2034.8,0.921]
[1772465689877,0.002,2035.2,2034.9,0.921]
[1772465690100,0.002,2035.2,2034.7,1.22864377]
[1772465690401,0.002,2035.5,2034.4,4.91538149]
[1772465690601,0.002,2036.0,2034.6,6.04027472]
[1772465690902,1.22989783,2036.0,2034.8,7.26889137]
[1772465691077,1.22989783,2036.0,2034.9,0.924]
[1772465691270,7.08458314,2036.0,2034.3,6.04027472]
[1772465691470,7.08458314,2036.0,2034.2,2.15294929]
[1772465692512,5.85468531,2035.6,2033.9,1.22916564]
[1772465692778,5.85468531,2035.6,2033.7,0.923]
[1772465692779,7.08300545,2035.3,2033.7,0.923]
[1772465693720,1.243,2035.2,2033.7,0.923]
[1772465694107,1.243,2035.2,2033.5,6.04027472]
[1772465694290,1.243,2035.1,2033.6,0.922]
[1772465694600,7.08300545,2035.3,2033.6,6.96227472]
[1772465694804,1.22832014,2035.3,2033.8,6.04027472]
[1772465695002,1.242,2035.2,2033.7,1.22928652]
[1772465695205,7.09668531,2035.2,2033.7,1.22928652]
[1772465695407,5.85468531,2035.2,2033.3,1.22949863]
[1772465695727,1.22832014,2035.3,2033.0,1.56574124]
[1772465695728,5.85468531,2035.0,2033.0,1.56574124]
[1772465695907,5.85468531,2034.6,2032.9,8.1899976]
[1772465696213,2.76968533,2034.9,2032.9,7.2699976]
[1772465696214,5.85468531,2034.4,2032.9,7.2699976]
[1772465696719,7.09568531,2034.3,2032.8,2.14980797]
[1772465697022,5.85468531,2034.1,2032.6,1.22991039]
[1772465697880,5.85468531,2034.1,2032.4,2.15002804]
[1772465698078,5.85468531,2034.1,2032.2,1.23015831]
[1772465698283,1.24,2034.0,2032.3,6.04027472]
[1772465698481,1.24,2034.0,2032.3,6.79930802]
[1772465698730,1.22898436,2034.2,2032.7,6.04027472]
[1772465698905,5.85468531,2034.3,2032.8,2.14983077]
[1772465699309,1.24,2034.4,2032.9,6.04027472]
[1772465699510,1.24,2034.4,2033.0,0.41742056]
[1772465699702,10.76917959,2034.8,2033.1,6.04027472]
[1772465699906,2.46868236,2034.7,2033.1,6.38188746]
[1772465700092,2.46868236,2034.7,2033.1,6.04027472]
[1772465700423,1.22841012,2035.2,2033.7,6.04027472]
[1772465700597,1.2282598,2035.4,2033.8,6.96127472]
[1772465700798,1.2282598,2035.4,2033.9,7.26944036]
[1772465700998,1.2282598,2035.4,2033.6,1.22934697]
[1772465700999,7.08294511,2035.4,2033.6,1.22934697]
[1772465701297,7.09468531,2035.3,2033.6,1.22934697]
[1772465701697,7.09468531,2035.2,2033.6,7.61123443]
[1772465702001,7.09468531,2035.2,2033.4,1.22945939]
[1772465702309,7.09468531,2035.2,2033.5,0.34161274]
[1772465702310,5.85468531,2035.2,2033.5,0.34161274]
[1772465702510,5.85468531,2035.2,2033.6,0.921]
[1772465702713,7.09468531,2035.1,2033.6,0.065536]
[1772465702897,1.22850122,2035.0,2033.8,1.22922607]
[1772465703095,4.91400491,2035.4,2033.8,1.22922607]
[1772465703096,1.24,2035.4,2033.8,8.19050079]
[1772465703418,5.85668531,2035.1,2033.7,1.2292814]
[1772465703733,5.85468531,2034.9,2033.1,1.22962923]
[1772465704406,5.85468531,2034.9,2033.1,7.26990395]
[1772465704610,1.239,2034.8,2033.2,6.10581072]
[1772465704790,1.22868236,2034.7,2033.3,1.22952835]
[1772465704992,1.22868236,2034.7,2033.3,2.14952835]
[1772465705204,1.22868236,2034.7,2033.3,8.18980307]
[1772465705406,7.08336767,2034.7,2033.3,1.22952835]
[1772465705722,7.08336767,2034.7,2033.2,1.22955629]
[1772465706208,7.08336767,2034.7,2033.1,1.2296027]
[1772465706607,7.08336767,2034.7,2033.0,1.23067702]
[1772465706810,0.065536,2034.6,2033.0,0.001]
[1772465706992,5.85468531,2034.5,2033.0,0.001]
[1772465707192,7.09268531,2034.4,2033.0,0.001]
[1772465707502,1.238,2034.3,2033.0,0.001]
[1772465707697,7.09268531,2034.3,2033.0,0.001]
[1772465708494,5.85468531,2034.3,2033.0,0.001]
[1772465708701,1.238,2034.2,2033.0,0.001]
[1772465708899,1.238,2034.1,2033.0,0.001]
[1772465709208,5.85468531,2034.1,2033.0,0.001]
[1772465709418,1.22898436,2034.2,2033.0,0.001]
[1772465709419,1.238,2034.0,2033.0,0.001]
[1772465709603,7.09268531,2034.0,2033.0,0.001]
[1772465710491,1.238,2033.9,2033.0,0.001]
[1772465710947,7.08391138,2033.8,2033.0,0.001]
[1772465711097,5.85468531,2033.7,2032.8,0.001]
[1772465711730,5.85468531,2033.7,2032.5,0.001]
[1772465712308,7.09268531,2033.6,2032.5,0.001]
[1772465712629,5.85468531,2033.6,2032.5,0.001]
[1772465712835,7.09268531,2033.5,2032.5,0.001]
[1772465713039,1.22946788,2033.4,2032.5,0.001]
[1772465713203,2.46745004,2033.5,2032.5,0.001]
[1772465713549,3.17432185,2033.8,2032.5,0.001]
[1772465713833,1.22927314,2033.8,2032.5,6.04127472]
[1772465714338,2.46722337,2033.9,2032.5,6.38288746]
[1772465714503,7.20405437,2034.5,2032.7,6.19711082]
[1772465714706,1.22880314,2034.5,2033.2,6.19711082]
[1772465714944,4.9151413,2034.6,2033.3,1.22952835]
[1772465715104,5.97525123,2034.5,2033.0,1.22970978]
[1772465715307,5.97525123,2034.5,2033.0,7.4268206]
[1772465715517,7.20381283,2034.9,2033.5,6.19711082]
[1772465715715,7.20381283,2034.9,2033.6,7.11411082]
[1772465715716,1.2285616,2034.9,2033.6,7.11411082]
[1772465716121,1.22854666,2035.0,2033.6,7.11411082]
[1772465716461,2.46946271,2035.1,2033.6,7.45572356]
[1772465716606,1.23046271,2035.1,2033.7,6.53872356]
[1772465716805,1.23046271,2035.1,2033.3,6.19711082]
[1772465716806,7.20571394,2035.1,2033.3,6.19711082]
[1772465717038,7.20571394,2035.1,2033.4,1.22946788]
[1772465717039,5.97525123,2034.9,2033.4,1.22946788]
[1772465717734,1.238,2034.9,2033.4,7.65849149]
[1772465717936,1.23046271,2035.1,2033.8,6.42902361]
[1772465718138,1.23046271,2035.1,2033.8,7.34602361]
[1772465718433,0.002,2035.1,2034.0,6.42902361]
[1772465718817,1.23044802,2035.1,2034.0,6.42902361]
[1772465719014,0.002,2035.1,2034.1,1.22904478]
[1772465719337,0.002,2035.1,2033.8,0.065536]
[1772465719527,6.48970263,2035.1,2033.7,1.22922607]
[1772465720051,7.72870263,2035.1,2033.7,7.65824968]
[1772465720201,6.48970263,2035.1,2033.7,7.65824968]
[1772465720410,1.239,2035.0,2033.7,7.65824968]
[1772465720604,7.72670263,2035.0,2033.4,4.9177452]
[1772465720834,7.72670263,2035.0,2033.3,1.2294809]
[1772465721033,6.48770263,2034.8,2033.3,1.2294809]
[1772465721538,7.72670263,2034.7,2033.3,1.2294809]
[1772465721901,7.72670263,2034.7,2033.2,1.22955267]
[1772465722306,1.238,2034.6,2033.2,1.22955267]
[1772465722539,7.72570263,2034.6,2033.2,1.22955267]
[1772465723040,1.2285616,2034.9,2033.2,7.65857628]
[1772465723347,2.4665616,2034.9,2033.3,6.49455961]
[1772465723636,6.48770263,2034.8,2033.4,0.918]
[1772465724633,1.237,2034.7,2033.4,0.918]
[1772465724836,1.237,2034.7,2033.4,7.34702361]
[1772465725237,1.22874275,2034.6,2033.5,1.22940742]
[1772465725425,1.22874275,2034.6,2033.5,7.65843103]
[1772465725747,1.22850122,2035.0,2033.5,7.65843103]
[1772465725938,1.22850122,2035.0,2033.6,0.918]
[1772465726111,7.72470263,2034.9,2033.6,0.919]
[1772465726309,7.72470263,2034.9,2033.5,1.22940742]
[1772465726520,7.72470263,2034.9,2033.5,2.14840742]
[1772465726808,7.72470263,2034.9,2033.4,2.14842017]
[1772465727442,6.48770263,2034.7,2033.4,2.14842017]
[1772465727943,6.48770263,2034.7,2033.3,1.22952835]
[1772465728122,1.237,2034.6,2033.3,1.22952835]
[1772465728323,6.48770263,2034.6,2033.3,1.22952835]
[1772465728526,1.237,2034.5,2033.3,1.22952835]
[1772465728934,6.48770263,2034.6,2033.3,1.22952835]
[1772465729255,1.237,2034.5,2033.2,1.22955046]
[1772465729456,1.22886354,2034.4,2033.3,0.919]
[1772465729621,2.46586354,2034.4,2033.3,0.919]
[1772465729821,6.48770263,2034.3,2032.7,0.066536]
[1772465730118,6.48770263,2034.3,2032.9,0.92]
[1772465730318,6.48770263,2034.3,2032.8,1.22983077]
[1772465730548,6.48770263,2034.3,2032.9,0.92]
[1772465730927,6.48770263,2034.3,2032.9,7.34902361]
[1772465731122,7.72570263,2034.2,2032.7,1.23085371]
[1772465731448,7.72570263,2034.2,2032.7,2.15088843]
[1772465731449,6.48770263,2034.0,2032.7,2.15088843]
[1772465731651,1.22904478,2034.1,2032.7,8.57991204]
[1772465731840,1.238,2033.9,2032.8,0.92]
[1772465732149,1.238,2033.9,2033.0,0.001]
[1772465733363,7.71674741,2034.1,2033.0,0.001]
[1772465733653,1.238,2034.0,2033.0,0.001]
[1772465733851,7.71674741,2034.1,2033.0,0.001]
[1772465734150,1.238,2034.0,2033.0,0.001]
[1772465734326,7.72570263,2034.0,2033.0,0.001]
[1772465734931,6.48770263,2034.0,2033.0,0.001]
[1772465735316,1.238,2033.9,2033.0,0.001]
[1772465735527,1.22922607,2033.8,2033.0,0.001]
[1772465735722,1.22922607,2033.8,2032.8,0.001]
[1772465735723,7.7169287,2033.8,2032.8,0.001]
[1772465736319,1.238,2033.7,2032.8,0.001]
[1772465736520,7.72570263,2033.7,2032.8,0.001]
[1772465736844,6.48770263,2033.7,2032.8,0.001]
[1772465737152,1.238,2033.6,2032.8,0.001]
[1772465737523,1.22922607,2033.8,2032.8,6.43002361]
[1772465737524,1.238,2033.8,2032.8,6.43002361]
[1772465737927,1.22916564,2033.9,2032.9,0.919]
[1772465738253,6.48770263,2034.5,2032.9,0.919]
[1772465738437,1.238,2034.4,2032.9,7.34802361]
[1772465738639,7.72570263,2034.4,2032.9,7.34802361]
[1772465738831,7.72570263,2034.4,2032.9,6.42902361]
[1772465739064,7.72570263,2034.4,2032.8,0.001]
[1772465739656,6.48770263,2034.2,2032.8,0.001]
[1772465741540,6.48770263,2034.0,2032.8,0.001]
[1772465741742,7.72570263,2033.9,2032.8,0.001]
[1772465742058,1.238,2033.8,2032.8,6.43002361]
[1772465742239,1.238,2033.8,2032.8,0.001]
[1772465742425,7.72570263,2033.8,2032.8,0.001]
[1772465743655,2.46728652,2033.7,2032.8,0.001]
[1772465744661,1.22928652,2033.7,2032.8,0.001]
[1772465744828,2.46728652,2033.7,2032.8,0.001]
[1772465745660,1.22928652,2033.7,2032.8,6.43002361]
[1772465745828,1.22925645,2033.8,2032.8,7.34802361]
[1772465746029,1.238,2034.3,2032.8,7.34802361]
[1772465746030,7.7163246,2034.8,2033.0,6.42902361]
[1772465746241,7.7163246,2034.8,2033.2,6.42902361]
[1772465746459,7.7163246,2034.8,2033.4,6.42902361]
[1772465746460,8.9533246,2034.8,2033.4,6.42902361]
[1772465746967,1.238,2034.7,2033.4,6.42902361]
[1772465747186,1.22862197,2034.8,2033.6,6.42902361]
[1772465747465,1.22862197,2034.8,2033.6,6.87561084]
[1772465747630,0.002,2034.9,2033.7,7.31651488]
[1772465747831,0.002,2034.9,2033.8,7.00522836]
[1772465748147,0.002,2034.9,2033.9,6.08722836]
[1772465748354,0.002,2034.9,2033.9,6.53381559]
[1772465748553,0.002,2034.9,2034.1,6.08722836]
[1772465748764,0.002,2034.9,2033.7,7.31651488]
[1772465749139,1.237,2034.8,2033.7,8.23551488]
[1772465749333,0.002,2034.9,2033.8,6.08722836]
[1772465749535,0.002,2034.9,2034.0,6.08722836]
[1772465749838,0.002,2034.9,2034.1,7.37125776]
[1772465750073,0.002,2034.9,2034.1,0.44658723]
[1772465750230,0.002,2034.9,2033.9,0.92]
[1772465750936,0.002,2034.9,2033.5,4.98244031]
[1772465750937,5.85944363,2034.8,2033.5,1.22940742]
[1772465751380,5.85944363,2034.5,2033.4,0.92]
[1772465751583,1.22892395,2034.3,2033.4,8.23666992]
[1772465751787,1.22862197,2034.8,2033.5,6.08722836]
[1772465752157,1.22862197,2034.8,2033.6,7.00722836]
[1772465752355,2.46462197,2034.8,2033.6,7.00722836]
[1772465753554,2.46462197,2034.8,2033.7,1.22928652]
[1772465753750,1.22862197,2034.8,2033.8,6.08722836]
[1772465753964,1.23060401,2034.9,2033.8,6.08722836]
[1772465754280,1.23056526,2034.9,2033.8,6.08722836]
[1772465754487,0.002,2034.9,2033.8,6.08722836]
[1772465754781,1.23056814,2034.9,2033.8,6.08722836]
[1772465755487,7.09001177,2034.9,2033.4,6.42091993]
[1772465755653,7.09001177,2034.9,2033.7,2.15124791]
[1772465756069,7.09001177,2034.9,2033.5,4.91743747]
[1772465756384,5.85944363,2034.8,2033.5,1.22940742]
[1772465756979,5.85944363,2034.8,2033.5,2.15140742]
[1772465757682,5.85944363,2034.6,2033.6,1.22934697]
[1772465758184,1.238,2034.5,2033.6,1.22934697]
[1772465758357,1.22862581,2034.8,2033.6,7.31657533]
[1772465758558,7.08806944,2034.8,2033.6,1.22934697]
[1772465759170,7.08806944,2034.8,2033.7,0.923]
[1772465759363,7.08806944,2034.8,2033.6,1.22934697]
[1772465759563,7.08806944,2034.8,2033.7,0.923]
[1772465759769,7.08806944,2034.8,2033.7,0.924]
[1772465759975,7.08806944,2034.8,2033.7,2.15323783]
[1772465760171,1.22862581,2034.8,2033.7,8.24046619]
[1772465760371,1.22862581,2034.8,2033.8,6.08722836]
[1772465760594,2.46860821,2034.9,2033.8,6.08722836]
[1772465760761,1.23056319,2034.9,2033.8,6.08722836]
[1772465761291,1.23056319,2034.9,2033.9,0.924]
[1772465761491,0.002,2035.1,2034.1,6.08722836]
[1772465761792,0.002,2035.1,2034.2,8.24121272]
[1772465761994,0.002,2035.1,2034.2,7.31621272]
[1772465762162,0.002,2035.1,2034.1,2.15399678]
[1772465762490,0.002,2035.1,2034.1,7.01222836]
[1772465762695,0.002,2035.1,2034.2,7.01222836]
[1772465762864,0.002,2035.3,2034.3,6.15276436]
[1772465763178,0.002,2035.3,2034.4,0.925]
[1772465763378,0.002,2035.3,2034.4,6.08722836]
[1772465763585,0.002,2035.3,2034.5,7.01222836]
[1772465763780,0.002,2035.3,2034.2,0.43945432]
[1772465763781,0.002,2035.3,2034.4,0.925]
[1772465763984,0.002,2035.3,2034.3,1.22888405]
[1772465764197,0.002,2034.9,2034.3,1.22888405]
[1772465764994,1.237,2034.8,2033.9,0.001]
[1772465765705,1.22868236,2034.7,2033.9,0.001]
[1772465765921,1.23058776,2034.9,2034.0,0.925]
[1772465766067,1.23058548,2034.9,2034.0,0.925]
[1772465766265,1.23058548,2034.9,2033.9,0.926]
[1772465766500,0.002,2034.9,2033.9,7.01322836]
[1772465766708,0.002,2035.2,2034.2,6.08722836]
[1772465767200,0.002,2035.2,2034.4,6.08722836]
[1772465767365,0.002,2035.3,2034.5,7.01222836]
[1772465767564,0.002,2035.4,2034.7,6.08722836]
[1772465767795,0.002,2035.4,2034.8,1.22862197]
[1772465768099,0.002,2035.4,2034.9,0.925]
[1772465768609,0.002,2035.5,2034.9,0.925]
[1772465768769,0.002,2035.5,2034.8,0.926]
[1772465769273,0.002,2035.5,2034.3,11.0029078]
[1772465769274,5.86144363,2035.5,2034.3,1.2288787]
[1772465769464,5.86144363,2035.5,2033.9,8.24334926]
[1772465769672,1.22794696,2036.0,2034.6,6.08722836]
[1772465769872,7.08739059,2036.0,2034.7,2.15468236]
[1772465770174,7.08739059,2036.0,2034.8,0.926]
[1772465770375,1.22788278,2036.1,2034.8,7.01322836]
[1772465770568,1.22788278,2036.1,2034.9,0.926]
[1772465771495,1.22788278,2036.1,2034.8,6.08722836]
[1772465771709,2.46388278,2036.1,2034.9,0.927]
[1772465771876,1.22729504,2037.0,2035.0,7.31572958]
[1772465772063,5.85944363,2036.8,2035.2,6.08722836]
[1772465772272,1.236,2036.7,2035.2,6.08722836]
[1772465772503,1.236,2036.8,2035.2,6.08722836]
[1772465772722,8.32273867,2037.0,2035.2,6.08722836]
[1772465773003,5.85944363,2036.6,2035.2,0.927]
[1772465773168,5.85944363,2036.4,2034.8,7.31583066]
[1772465773370,5.85944363,2036.2,2034.8,0.927]
[1772465773569,5.85944363,2035.8,2034.5,0.927]
[1772465773770,1.22813912,2035.6,2034.6,1.22874275]
[1772465773998,5.85944363,2035.5,2034.2,0.927]
[1772465774167,2.46313912,2035.6,2034.2,7.01422836]
[1772465774378,6.36173575,2035.5,2034.2,6.08722836]
[1772465774569,6.36173575,2035.5,2034.2,0.926]
[1772465775298,1.22813912,2035.6,2034.2,7.24434715]
[1772465775600,1.22813912,2035.6,2034.3,0.926]
[1772465775601,7.59673575,2035.5,2034.3,0.926]
[1772465775771,1.2282598,2035.4,2034.4,1.22886354]
[1772465776107,1.235,2036.4,2034.7,6.31834715]
[1772465776272,1.235,2036.4,2035.1,6.31834715]
[1772465776468,1.22747581,2036.7,2035.3,6.31834715]
[1772465776692,1.22747581,2036.7,2035.4,0.926]
[1772465776899,1.22747581,2036.7,2035.5,0.926]
[1772465777197,1.22746174,2036.8,2035.5,7.24434715]
[1772465777668,1.22746174,2036.8,2035.6,0.926]
[1772465777874,11.27120425,2036.9,2035.7,7.25827408]
[1772465777875,1.22738527,2036.9,2035.7,7.25827408]
[1772465778068,1.22732803,2037.0,2035.7,7.25827408]
[1772465778601,1.22732803,2037.0,2035.8,0.927]
[1772465778782,1.236,2036.9,2035.8,0.927]
[1772465779302,0.002,2036.6,2035.8,6.95719529]
[1772465779796,1.22730462,2037.0,2035.9,1.22795815]
[1772465779999,0.002,2036.8,2035.8,1.22797642]
[1772465780375,0.002,2036.8,2035.8,0.928]
[1772465780576,7.17073302,2036.7,2035.6,0.928]
[1772465780981,0.002,2036.8,2035.6,0.928]
[1772465781192,0.002,2036.8,2035.6,6.95819529]
[1772465781392,0.002,2036.8,2035.3,1.22831761]
[1772465781393,7.17273302,2036.8,2035.3,1.22831761]
[1772465781591,7.17273302,2036.8,2035.3,2.15631761]
[1772465781794,1.22753608,2036.6,2035.0,1.22850122]
[1772465781980,5.93473302,2036.5,2035.0,1.22850122]
[1772465782383,7.17073302,2036.4,2035.0,2.15650122]
[1772465782707,7.17073302,2036.4,2035.1,6.03019529]
[1772465783101,5.93473302,2036.4,2035.0,1.22850122]
[1772465783301,7.16973302,2036.3,2034.9,0.928]
[1772465783983,2.46277723,2036.2,2035.0,6.03019529]
[1772465784190,8.39751025,2036.2,2034.9,2.1565045]
[1772465784408,5.93473302,2036.1,2034.3,1.22989491]
[1772465784594,5.93473302,2035.9,2034.5,0.928]
[1772465784794,1.236,2035.8,2034.5,0.928]
[1772465785126,3.15974973,2036.2,2034.5,0.928]
[1772465785127,1.22777723,2036.2,2034.5,6.95819529]
[1772465785303,7.16251025,2036.2,2034.5,6.46964961]
[1772465785495,7.16251025,2036.2,2034.6,1.36645432]
[1772465785699,7.16251025,2036.2,2034.6,0.927]
[1772465785901,7.16251025,2036.2,2034.7,0.927]
[1772465786195,1.235,2036.1,2034.7,7.39664961]
[1772465786601,7.16973302,2036.0,2034.7,6.95719529]
[1772465786918,7.16973302,2036.0,2034.3,7.26007473]
[1772465787214,7.16973302,2036.0,2034.4,0.927]
[1772465787215,5.93473302,2035.8,2034.4,0.927]
[1772465787378,5.93473302,2035.8,2034.3,1.22990983]
[1772465787583,5.93473302,2035.6,2034.3,1.22990983]
[1772465787893,1.22807879,2035.7,2034.6,6.03019529]
[1772465788080,1.22807879,2035.7,2034.5,1.22880314]
[1772465788081,1.22807879,2035.7,2034.7,7.39664961]
[1772465788281,7.16281181,2035.7,2034.3,0.001]
[1772465788523,7.16281181,2035.7,2034.3,2.1569105]
[1772465788680,7.16281181,2035.7,2034.3,1.22992353]
[1772465788885,7.16281181,2035.7,2034.3,0.001]
[1772465789189,1.236,2035.6,2034.3,7.26010828]
[1772465789598,1.22807879,2035.7,2034.5,6.03019529]
[1772465789795,1.22807879,2035.7,2034.7,6.03019529]
[1772465790019,4.91231517,2035.8,2034.8,7.25881726]
[1772465791227,4.91231517,2035.8,2034.8,6.03019529]
[1772465791522,1.236,2035.7,2034.6,6.95819529]
[1772465791818,1.236,2035.7,2034.4,2.15681768]
[1772465792023,1.22813912,2035.6,2034.4,2.15681768]
[1772465792209,1.22813912,2035.6,2034.4,0.928]
[1772465792395,1.22813912,2035.6,2034.5,6.03019529]
[1772465792717,1.22813912,2035.6,2034.5,6.95819529]
[1772465793094,2.46412093,2035.7,2034.5,6.95819529]
[1772465793294,1.87823525,2035.3,2034.3,0.77414589]
[1772465793597,5.93473302,2034.6,2034.0,0.001]
[1772465793798,5.93473302,2034.3,2033.4,0.001]
[1772465794098,1.22898436,2034.2,2033.4,0.003]
[1772465794302,1.236,2034.1,2033.4,0.003]
[1772465794497,1.22898436,2034.2,2033.4,0.003]
[1772465794702,1.22896974,2034.3,2033.4,0.003]
[1772465795092,1.236,2034.5,2033.4,6.03319529]
[1772465795292,1.236,2034.8,2033.4,6.03319529]
[1772465795594,1.22795815,2035.9,2034.0,6.03019529]
[1772465795802,1.22795815,2035.9,2034.6,6.03019529]
[1772465796002,4.9118326,2036.0,2034.8,1.22862197]
[1772465796394,10.84521839,2036.5,2035.1,6.03019529]
[1772465796395,1.22765664,2036.4,2035.1,6.03019529]
[1772465796811,1.22765664,2036.4,2035.2,0.929]
[1772465797130,0.002,2036.6,2035.2,6.96119529]
[1772465797131,1.22954012,2036.6,2035.2,6.96119529]
[1772465797338,0.002,2036.6,2035.4,6.03019529]
[1772465797497,0.002,2036.6,2035.5,0.929]
[1772465797498,1.22955865,2036.6,2035.5,0.929]
[1772465797699,0.002,2036.6,2035.7,6.03019529]
[1772465797889,0.65081907,2037.1,2035.9,1.22795815]
[1772465797890,1.87806795,2037.1,2035.9,1.22795815]
[1772465798094,0.65081907,2037.1,2036.1,6.03019529]
[1772465798325,1.87823525,2038.4,2036.3,6.03019529]
[1772465798535,0.45527679,2038.3,2036.3,6.03019529]
[1772465798698,1.87823525,2038.2,2036.3,6.03019529]
[1772465798900,1.236,2038.1,2036.4,6.95919529]
[1772465799105,4.90604915,2038.4,2036.8,6.03019529]
[1772465799293,4.90604915,2038.4,2037.0,6.03019529]
[1772465799497,6.7842844,2038.4,2036.3,6.03019529]
[1772465799697,5.93473302,2038.3,2036.5,6.03019529]
[1772465799931,1.237,2038.2,2036.6,6.03019529]
[1772465800099,2.46263264,2038.1,2036.7,1.22747581]
[1772465800299,2.46263264,2038.1,2036.8,0.929]
[1772465800499,1.236,2038.0,2036.7,1.22747581]
[1772465800709,1.236,2038.0,2036.8,0.929]
[1772465800923,1.22663264,2038.1,2036.8,0.929]
[1772465801128,2.46263264,2038.1,2036.7,1.22747581]
[1772465801326,1.22663264,2038.1,2036.9,0.929]
[1772465801520,1.22663264,2038.1,2037.0,0.929]
[1772465801902,1.22663264,2038.1,2036.9,6.03019529]
[1772465801903,1.22663264,2038.1,2037.1,0.929]
[1772465802101,1.22663264,2038.1,2037.2,1.22717455]
[1772465802459,5.06841949,2039.0,2037.6,6.17968028]
[1772465802460,0.1639875,2039.0,2037.6,6.17968028]
[1772465802617,0.1639875,2039.0,2037.8,6.03019529]
[1772465802618,1.39008916,2039.0,2037.8,6.03019529]
[1772465802941,8.56082218,2039.0,2037.3,6.03019529]
[1772465803143,5.93473302,2038.9,2037.4,0.931]
[1772465803499,5.93473302,2038.9,2037.3,6.03019529]
[1772465803500,5.93473302,2038.9,2037.3,0.931]
[1772465803930,1.239,2038.8,2037.3,6.96119529]
[1772465804133,1.22627164,2038.7,2037.4,1.22705408]
[1772465804433,0.1639875,2039.0,2038.0,6.03019529]
[1772465804632,9.11778173,2040.0,2038.2,6.03019529]
[1772465804633,1.22555027,2039.9,2038.2,6.03019529]
[1772465804834,1.22555027,2039.9,2038.3,0.933]
[1772465805034,1.22555027,2039.9,2038.3,6.96319529]
[1772465805205,2.46555027,2039.9,2038.3,6.03019529]
[1772465805406,2.46555027,2039.9,2038.1,2.65209614]
[1772465805407,2.46555027,2039.9,2038.5,6.03019529]
[1772465805841,2.46555027,2039.9,2038.6,0.933]
[1772465806137,2.46555027,2039.9,2038.6,1.22628672]
[1772465806437,1.24,2039.8,2038.6,0.933]
[1772465806739,1.241,2039.7,2038.1,3.87869148]
[1772465806916,0.002,2038.7,2037.4,8.68229143]
[1772465807115,0.002,2038.7,2037.7,6.03019529]
[1772465807310,0.002,2038.7,2037.8,0.935]
[1772465807706,0.002,2038.7,2037.4,2.65209614]
[1772465807911,0.002,2038.7,2037.3,7.6983414]
[1772465808107,1.22633179,2038.6,2037.2,7.69840164]
[1772465808520,1.22633179,2038.6,2037.3,7.40522709]
[1772465808725,1.22830349,2038.7,2037.3,7.40522709]
[1772465808922,0.002,2038.7,2037.3,7.40522709]
[1772465809121,1.22830467,2038.7,2037.3,7.40522709]
[1772465809325,1.22830467,2038.7,2037.4,0.935]